[Event "December 5 Late 2023"]
[Site "https://www.chess.com"]
[Date "2023.12.05"]
[Round "5"]
[White "Uryupin, Igor"]
[Black "Livaic, Leon"]
[Result "0-1"]
[Board "64"]
[TimeControl "180+1"]
[WhiteFideId "4182529"]
[BlackFideId "14531534"]
[WhiteElo "2467"]
[BlackElo "2826"]
[WhiteTeam "RUS"]
[BlackTeam "CRO"]
[WhiteClock "0:00:00"]
[BlackClock "0:00:19"]

1. d4 {[%clk 0:03:00]}  Nf6 {[%clk 0:02:57]} 2. Nf3 {[%clk 0:03:00]}  b6 {[%clk 0:02:56]} 3. Bf4 {[%clk 0:02:58]}  Bb7 {[%clk 0:02:55]} 4. e3 {[%clk 0:02:58]}  g6 {[%clk 0:02:56]} 5. Nbd2 {[%clk 0:02:55]}  Bg7 {[%clk 0:02:56]} 6. Be2 {[%clk 0:02:56]}  O-O {[%clk 0:02:56]} 7. h3 {[%clk 0:02:52]}  d6 {[%clk 0:02:57]} 8. O-O {[%clk 0:02:51]}  Nbd7 {[%clk 0:02:57]} 9. c4 {[%clk 0:02:50]}  Qe8 {[%clk 0:02:47]} 10. Rc1 {[%clk 0:02:48]}  e5 {[%clk 0:02:46]} 11. Bh2 {[%clk 0:02:45]}  a5 {[%clk 0:02:43]} 12. b3 {[%clk 0:02:44]}  Qe7 {[%clk 0:02:36]} 13. Re1 {[%clk 0:02:37]}  e4 {[%clk 0:02:30]} 14. Nh4 {[%clk 0:02:30]}  Ne8 {[%clk 0:02:30]} 15. g3 {[%clk 0:02:26]}  f5 {[%clk 0:02:19]} 16. Ng2 {[%clk 0:02:23]}  g5 {[%clk 0:02:18]} 17. g4 {[%clk 0:02:17]}  fxg4 {[%clk 0:02:07]} 18. Bxg4 {[%clk 0:02:16]}  Nef6 {[%clk 0:01:59]} 19. f4 {[%clk 0:02:15]}  exf3 {[%clk 0:01:41]} 20. Bxf3 {[%clk 0:02:10]}  Ne4 {[%clk 0:01:39]} 21. Nxe4 {[%clk 0:01:58]}  Bxe4 {[%clk 0:01:40]} 22. Bxe4 {[%clk 0:01:57]}  Qxe4 {[%clk 0:01:41]} 23. Qg4 {[%clk 0:01:55]}  Qxg4 {[%clk 0:01:25]} 24. hxg4 {[%clk 0:01:54]}  Nf6 {[%clk 0:01:26]} 25. Re2 {[%clk 0:01:44]}  Nxg4 {[%clk 0:01:26]} 26. Ne1 {[%clk 0:01:43]}  Rae8 {[%clk 0:01:23]} 27. Nc2 {[%clk 0:01:42]}  Nf6 {[%clk 0:01:03]} 28. c5 {[%clk 0:01:36]}  Ne4 {[%clk 0:00:59]} 29. cxb6 {[%clk 0:01:31]}  cxb6 {[%clk 0:00:59]} 30. Na3 {[%clk 0:01:28]}  g4 {[%clk 0:00:53]} 31. Kg2 {[%clk 0:01:27]}  h5 {[%clk 0:00:49]} 32. Nb5 {[%clk 0:01:27]}  Re6 {[%clk 0:00:43]} 33. Nc7 {[%clk 0:01:22]}  Ref6 {[%clk 0:00:42]} 34. Nd5 {[%clk 0:01:18]}  Rf2+ {[%clk 0:00:42]} 35. Rxf2 {[%clk 0:01:16]}  Rxf2+ {[%clk 0:00:42]} 36. Kg1 {[%clk 0:01:15]}  Rxa2 {[%clk 0:00:41]} 37. Nc3 {[%clk 0:01:07]}  Nxc3 {[%clk 0:00:38]} 38. Rxc3 {[%clk 0:01:06]}  Bf8 {[%clk 0:00:26]} 39. Rc8 {[%clk 0:01:03]}  Kf7 {[%clk 0:00:27]} 40. Bf4 {[%clk 0:00:59]}  h4 {[%clk 0:00:20]} 41. Rc7+ {[%clk 0:00:59]}  Ke6 {[%clk 0:00:19]} 42. Rd7 {[%clk 0:00:00]}  Kxd7 {[%clk 0:00:19]} 0-1

[Event "December 5 Late 2023"]
[Site "https://www.chess.com"]
[Date "2023.12.05"]
[Round "5"]
[White "Agibileg, Uurtsaikh"]
[Black "Rama, Tejas"]
[Result "0-1"]
[Board "69"]
[TimeControl "180+1"]
[WhiteFideId "4901606"]
[BlackFideId "30907381"]
[WhiteElo "2629"]
[BlackElo "2456"]
[WhiteTeam "MGL"]
[BlackTeam "USA"]
[WhiteClock "0:00:55"]
[BlackClock "0:00:13"]

1. d4 {[%clk 0:03:00]}  Nf6 {[%clk 0:02:59]} 2. c4 {[%clk 0:03:00]}  e6 {[%clk 0:03:00]} 3. Nc3 {[%clk 0:02:59]}  Bb4 {[%clk 0:02:59]} 4. a3 {[%clk 0:03:00]}  Bxc3+ {[%clk 0:02:59]} 5. bxc3 {[%clk 0:03:01]}  c5 {[%clk 0:02:59]} 6. f3 {[%clk 0:03:00]}  Nc6 {[%clk 0:02:58]} 7. e4 {[%clk 0:03:00]}  d6 {[%clk 0:02:58]} 8. d5 {[%clk 0:02:51]}  Na5 {[%clk 0:02:41]} 9. Bd3 {[%clk 0:02:48]}  b6 {[%clk 0:02:32]} 10. h4 {[%clk 0:02:44]}  Nd7 {[%clk 0:02:10]} 11. Bf4 {[%clk 0:02:40]}  Qe7 {[%clk 0:02:02]} 12. h5 {[%clk 0:02:35]}  Qf6 {[%clk 0:01:50]} 13. Ne2 {[%clk 0:02:25]}  Ba6 {[%clk 0:01:43]} 14. g4 {[%clk 0:02:12]}  Bxc4 {[%clk 0:01:30]} 15. g5 {[%clk 0:02:09]}  Qe7 {[%clk 0:01:26]} 16. Bxc4 {[%clk 0:02:07]}  Nxc4 {[%clk 0:01:26]} 17. Qd3 {[%clk 0:02:07]}  Nde5 {[%clk 0:01:16]} 18. Bxe5 {[%clk 0:02:02]}  Nxe5 {[%clk 0:01:15]} 19. Qb5+ {[%clk 0:02:01]}  Qd7 {[%clk 0:01:12]} 20. Qxd7+ {[%clk 0:02:00]}  Kxd7 {[%clk 0:01:12]} 21. Kf2 {[%clk 0:01:58]}  exd5 {[%clk 0:01:06]} 22. exd5 {[%clk 0:01:58]}  Rae8 {[%clk 0:00:52]} 23. Nf4 {[%clk 0:01:56]}  Nc4 {[%clk 0:00:41]} 24. a4 {[%clk 0:01:40]}  Re5 {[%clk 0:00:37]} 25. g6 {[%clk 0:01:33]}  fxg6 {[%clk 0:00:22]} 26. hxg6 {[%clk 0:01:32]}  h6 {[%clk 0:00:22]} 27. Ne6 {[%clk 0:01:25]}  Rxd5 {[%clk 0:00:23]} 28. Nxg7 {[%clk 0:01:25]}  Rg8 {[%clk 0:00:20]} 29. Nh5 {[%clk 0:01:06]}  Rxg6 {[%clk 0:00:20]} 30. Rh4 {[%clk 0:01:00]}  Rd2+ {[%clk 0:00:18]} 31. Kf1 {[%clk 0:00:59]}  Ne3+ {[%clk 0:00:17]} 32. Ke1 {[%clk 0:00:59]}  Rgg2 {[%clk 0:00:12]} 33. Nf4 {[%clk 0:00:55]}  Nc2+ {[%clk 0:00:13]} 34. Kf1 {[%clk 0:00:55]}  Rdf2# {[%clk 0:00:13]} 0-1

[Event "December 5 Late 2023"]
[Site "https://www.chess.com"]
[Date "2023.12.05"]
[Round "5"]
[White "Rios Escobar, Adan"]
[Black "Seemann, Jakub"]
[Result "0-1"]
[Board "70"]
[TimeControl "180+1"]
[WhiteFideId "3403645"]
[BlackFideId "21874697"]
[WhiteElo "2453"]
[BlackElo "2620"]
[WhiteTeam "CHI"]
[BlackTeam "POL"]
[WhiteClock "0:00:00"]
[BlackClock "0:00:32"]

1. d4 {[%clk 0:02:58]}  Nf6 {[%clk 0:02:59]} 2. g3 {[%clk 0:02:56]}  e6 {[%clk 0:02:55]} 3. c4 {[%clk 0:02:49]}  Bb4+ {[%clk 0:02:52]} 4. Nd2 {[%clk 0:02:49]}  O-O {[%clk 0:02:51]} 5. Bg2 {[%clk 0:02:45]}  d5 {[%clk 0:02:50]} 6. Nf3 {[%clk 0:02:44]}  dxc4 {[%clk 0:02:48]} 7. a3 {[%clk 0:02:44]}  Bxd2+ {[%clk 0:02:45]} 8. Bxd2 {[%clk 0:02:45]}  Nc6 {[%clk 0:02:44]} 9. e3 {[%clk 0:01:58]}  Rb8 {[%clk 0:02:42]} 10. Rc1 {[%clk 0:01:36]}  b5 {[%clk 0:02:41]} 11. b3 {[%clk 0:01:36]}  Bb7 {[%clk 0:02:37]} 12. bxc4 {[%clk 0:01:36]}  bxc4 {[%clk 0:02:38]} 13. Rxc4 {[%clk 0:01:34]}  Ne7 {[%clk 0:02:30]} 14. Rc1 {[%clk 0:01:25]}  Ba6 {[%clk 0:02:28]} 15. Bf1 {[%clk 0:01:16]}  Bxf1 {[%clk 0:02:28]} 16. Kxf1 {[%clk 0:01:17]}  Ne4 {[%clk 0:02:26]} 17. Bb4 {[%clk 0:01:17]}  Re8 {[%clk 0:02:24]} 18. Bxe7 {[%clk 0:01:10]}  Qxe7 {[%clk 0:02:22]} 19. Qd3 {[%clk 0:00:58]}  Nf6 {[%clk 0:02:00]} 20. Ne5 {[%clk 0:00:54]}  Qd6 {[%clk 0:02:00]} 21. Kg2 {[%clk 0:00:53]}  Rb2 {[%clk 0:01:58]} 22. Rc5 {[%clk 0:00:49]}  Reb8 {[%clk 0:01:49]} 23. Rhc1 {[%clk 0:00:48]}  R8b7 {[%clk 0:01:26]} 24. R1c2 {[%clk 0:00:44]}  R2b3 {[%clk 0:01:08]} 25. R2c3 {[%clk 0:00:36]}  Rxc3 {[%clk 0:00:51]} 26. Qxc3 {[%clk 0:00:37]}  Ne4 {[%clk 0:00:46]} 27. Qa1 {[%clk 0:00:07]}  Nxc5 {[%clk 0:00:45]} 28. dxc5 {[%clk 0:00:08]}  Qd5+ {[%clk 0:00:44]} 29. Kh3 {[%clk 0:00:05]}  Qxc5 {[%clk 0:00:44]} 30. Qd1 {[%clk 0:00:04]}  Qd5 {[%clk 0:00:34]} 31. Nd3 {[%clk 0:00:03]}  Rb3 {[%clk 0:00:31]} 32. Nb2 {[%clk 0:00:02]}  Rxb2 {[%clk 0:00:30]} 33. Qa4 {[%clk 0:00:02]}  h5 {[%clk 0:00:30]} 34. Qe8+ {[%clk 0:00:02]}  Kh7 {[%clk 0:00:30]} 35. Qxf7 {[%clk 0:00:03]}  Qf5+ {[%clk 0:00:31]} 36. Qxf5+ {[%clk 0:00:00]}  exf5 {[%clk 0:00:32]} 0-1

[Event "December 5 Late 2023"]
[Site "https://www.chess.com"]
[Date "2023.12.05"]
[Round "5"]
[White "Miranda, Rafael"]
[Black "Nadeev, Sergey"]
[Result "1/2-1/2"]
[Board "71"]
[TimeControl "180+1"]
[WhiteFideId "130990"]
[BlackFideId "4180038"]
[WhiteElo "2606"]
[BlackElo "2453"]
[WhiteTeam "ARG"]
[BlackTeam "RUS"]
[WhiteClock "0:00:29"]
[BlackClock "0:00:20"]

1. e4 {[%clk 0:02:57]}  e5 {[%clk 0:03:00]} 2. Nf3 {[%clk 0:02:56]}  Nc6 {[%clk 0:03:00]} 3. Bb5 {[%clk 0:02:57]}  a6 {[%clk 0:03:00]} 4. Ba4 {[%clk 0:02:56]}  Nf6 {[%clk 0:03:00]} 5. O-O {[%clk 0:02:56]}  Be7 {[%clk 0:03:00]} 6. Re1 {[%clk 0:02:56]}  b5 {[%clk 0:03:01]} 7. Bb3 {[%clk 0:02:56]}  O-O {[%clk 0:03:01]} 8. h3 {[%clk 0:02:54]}  Bb7 {[%clk 0:03:01]} 9. Nc3 {[%clk 0:02:53]}  d6 {[%clk 0:03:00]} 10. Nd5 {[%clk 0:02:52]}  Na5 {[%clk 0:02:53]} 11. Nxf6+ {[%clk 0:02:50]}  Bxf6 {[%clk 0:02:53]} 12. d4 {[%clk 0:02:41]}  exd4 {[%clk 0:02:49]} 13. Bd5 {[%clk 0:02:32]}  c6 {[%clk 0:02:48]} 14. Bb3 {[%clk 0:02:31]}  Re8 {[%clk 0:02:37]} 15. Bf4 {[%clk 0:02:05]}  Nxb3 {[%clk 0:02:32]} 16. axb3 {[%clk 0:02:05]}  c5 {[%clk 0:02:33]} 17. Qd3 {[%clk 0:02:06]}  Qc7 {[%clk 0:02:19]} 18. Nh2 {[%clk 0:02:00]}  Be5 {[%clk 0:01:59]} 19. Bxe5 {[%clk 0:01:55]}  dxe5 {[%clk 0:01:59]} 20. Qg3 {[%clk 0:01:51]}  Rac8 {[%clk 0:01:57]} 21. Ng4 {[%clk 0:01:51]}  Kh8 {[%clk 0:01:56]} 22. h4 {[%clk 0:01:51]}  h5 {[%clk 0:01:51]} 23. Nh2 {[%clk 0:01:51]}  Qe7 {[%clk 0:01:49]} 24. Nf3 {[%clk 0:01:49]}  g6 {[%clk 0:01:42]} 25. Ng5 {[%clk 0:01:42]}  Kg7 {[%clk 0:01:42]} 26. f4 {[%clk 0:01:42]}  exf4 {[%clk 0:01:39]} 27. Qxf4 {[%clk 0:01:43]}  f6 {[%clk 0:01:36]} 28. Nf3 {[%clk 0:01:38]}  Qe6 {[%clk 0:01:20]} 29. Nd2 {[%clk 0:01:32]}  Qg4 {[%clk 0:01:17]} 30. Qd6 {[%clk 0:01:26]}  Qe6 {[%clk 0:01:15]} 31. Qf4 {[%clk 0:01:24]}  Qe5 {[%clk 0:01:15]} 32. Qf2 {[%clk 0:01:23]}  c4 {[%clk 0:01:13]} 33. Nf3 {[%clk 0:01:23]}  Qc5 {[%clk 0:01:12]} 34. Nxd4 {[%clk 0:01:17]}  cxb3 {[%clk 0:01:06]} 35. c3 {[%clk 0:01:10]}  Qc4 {[%clk 0:00:55]} 36. Rf1 {[%clk 0:01:03]}  Qf7 {[%clk 0:00:55]} 37. Rfe1 {[%clk 0:00:52]}  Rcd8 {[%clk 0:00:51]} 38. Qf4 {[%clk 0:00:50]}  Qe7 {[%clk 0:00:43]} 39. Rad1 {[%clk 0:00:45]}  Qe5 {[%clk 0:00:43]} 40. Qxe5 {[%clk 0:00:37]}  fxe5 {[%clk 0:00:42]} 41. Nxb3 {[%clk 0:00:37]}  Rxd1 {[%clk 0:00:38]} 42. Rxd1 {[%clk 0:00:38]}  Bxe4 {[%clk 0:00:38]} 43. Nc5 {[%clk 0:00:39]}  Bf5 {[%clk 0:00:34]} 44. Kf2 {[%clk 0:00:39]}  a5 {[%clk 0:00:32]} 45. Ke3 {[%clk 0:00:39]}  b4 {[%clk 0:00:30]} 46. cxb4 {[%clk 0:00:38]}  axb4 {[%clk 0:00:30]} 47. Ra1 {[%clk 0:00:36]}  Rc8 {[%clk 0:00:30]} 48. Ra7+ {[%clk 0:00:37]}  Kh6 {[%clk 0:00:29]} 49. Ra5 {[%clk 0:00:37]}  e4 {[%clk 0:00:27]} 50. g3 {[%clk 0:00:35]}  Kg7 {[%clk 0:00:26]} 51. Rb5 {[%clk 0:00:33]}  Kf6 {[%clk 0:00:22]} 52. Nxe4+ {[%clk 0:00:30]}  Bxe4 {[%clk 0:00:22]} 53. Kxe4 {[%clk 0:00:31]}  Rc4+ {[%clk 0:00:22]} 54. Kf3 {[%clk 0:00:31]}  Rd4 {[%clk 0:00:21]} 55. Rb6+ {[%clk 0:00:29]}  Kf5 {[%clk 0:00:20]} 1/2-1/2

[Event "December 5 Late 2023"]
[Site "https://www.chess.com"]
[Date "2023.12.05"]
[Round "5"]
[White "Dyachuk, Artem"]
[Black "Liu, Casper"]
[Result "1-0"]
[Board "72"]
[TimeControl "180+1"]
[WhiteFideId "34107924"]
[BlackFideId "1454153"]
[WhiteElo "2604"]
[BlackElo "2451"]
[WhiteTeam "UKR"]
[BlackTeam "DEN"]
[WhiteClock "0:01:05"]
[BlackClock "0:00:30"]

1. e4 {[%clk 0:03:00]}  c5 {[%clk 0:02:54]} 2. Nf3 {[%clk 0:03:00]}  d6 {[%clk 0:02:54]} 3. d4 {[%clk 0:02:58]}  cxd4 {[%clk 0:02:55]} 4. Nxd4 {[%clk 0:02:58]}  Nf6 {[%clk 0:02:56]} 5. Nc3 {[%clk 0:02:57]}  Nc6 {[%clk 0:02:56]} 6. Bg5 {[%clk 0:02:56]}  Bd7 {[%clk 0:02:56]} 7. Qd2 {[%clk 0:02:48]}  Rc8 {[%clk 0:02:56]} 8. O-O-O {[%clk 0:02:46]}  Nxd4 {[%clk 0:02:57]} 9. Qxd4 {[%clk 0:02:46]}  Qa5 {[%clk 0:02:57]} 10. Bxf6 {[%clk 0:02:39]}  gxf6 {[%clk 0:02:58]} 11. Bc4 {[%clk 0:02:33]}  Bh6+ {[%clk 0:02:50]} 12. Kb1 {[%clk 0:02:33]}  Bf4 {[%clk 0:02:50]} 13. Nd5 {[%clk 0:02:22]}  Be5 {[%clk 0:02:48]} 14. Qd3 {[%clk 0:02:22]}  e6 {[%clk 0:02:19]} 15. Ne3 {[%clk 0:02:18]}  Qb4 {[%clk 0:02:11]} 16. c3 {[%clk 0:02:09]}  Qc5 {[%clk 0:01:57]} 17. Bb3 {[%clk 0:02:08]}  Bb5 {[%clk 0:01:55]} 18. Qd2 {[%clk 0:02:07]}  a5 {[%clk 0:01:50]} 19. Ng4 {[%clk 0:02:01]}  a4 {[%clk 0:01:46]} 20. Bc2 {[%clk 0:02:00]}  a3 {[%clk 0:01:45]} 21. f4 {[%clk 0:01:54]}  h5 {[%clk 0:01:28]} 22. Nf2 {[%clk 0:01:49]}  Bxf4 {[%clk 0:01:08]} 23. Qxf4 {[%clk 0:01:48]}  axb2 {[%clk 0:01:07]} 24. Qxf6 {[%clk 0:01:34]}  Rg8 {[%clk 0:01:06]} 25. g3 {[%clk 0:01:22]}  Rg6 {[%clk 0:00:50]} 26. Qd4 {[%clk 0:01:20]}  Qa3 {[%clk 0:00:45]} 27. Bb3 {[%clk 0:01:10]}  e5 {[%clk 0:00:30]} 28. Qd5 {[%clk 0:01:05]} 1-0

[Event "December 5 Late 2023"]
[Site "https://www.chess.com"]
[Date "2023.12.05"]
[Round "5"]
[White "DCacheiro"]
[Black "Espinoza Villanueva, Rodrigo"]
[Result "0-1"]
[Board "74"]
[TimeControl "180+1"]
[BlackFideId "5140188"]
[WhiteElo "2447"]
[BlackElo "2581"]
[BlackTeam "MEX"]
[WhiteClock "0:00:00"]
[BlackClock "0:00:15"]

1. e4 {[%clk 0:03:00]}  c5 {[%clk 0:02:58]} 2. Nf3 {[%clk 0:02:59]}  d6 {[%clk 0:02:58]} 3. d4 {[%clk 0:03:00]}  c4 {[%clk 0:02:58]} 4. Bxc4 {[%clk 0:02:59]}  e6 {[%clk 0:02:47]} 5. O-O {[%clk 0:02:58]}  Nc6 {[%clk 0:02:46]} 6. c3 {[%clk 0:02:58]}  Nf6 {[%clk 0:02:46]} 7. Bd3 {[%clk 0:02:58]}  Be7 {[%clk 0:02:44]} 8. Re1 {[%clk 0:02:58]}  e5 {[%clk 0:02:43]} 9. h3 {[%clk 0:02:58]}  O-O {[%clk 0:02:41]} 10. Nbd2 {[%clk 0:02:57]}  b6 {[%clk 0:02:39]} 11. Nc4 {[%clk 0:02:49]}  Bb7 {[%clk 0:02:38]} 12. dxe5 {[%clk 0:02:39]}  dxe5 {[%clk 0:02:37]} 13. Bg5 {[%clk 0:02:37]}  Nh5 {[%clk 0:02:34]} 14. Bxe7 {[%clk 0:02:32]}  Qxe7 {[%clk 0:02:34]} 15. g3 {[%clk 0:02:31]}  Qf6 {[%clk 0:02:31]} 16. Ne3 {[%clk 0:02:23]}  Rfd8 {[%clk 0:02:21]} 17. Ng4 {[%clk 0:02:00]}  Qe7 {[%clk 0:02:08]} 18. Qe2 {[%clk 0:01:59]}  Rac8 {[%clk 0:02:05]} 19. Rad1 {[%clk 0:01:57]}  Nf6 {[%clk 0:01:56]} 20. Ne3 {[%clk 0:01:37]}  g6 {[%clk 0:01:53]} 21. Kg2 {[%clk 0:01:16]}  Na5 {[%clk 0:01:52]} 22. Ng4 {[%clk 0:01:07]}  Nxg4 {[%clk 0:01:45]} 23. hxg4 {[%clk 0:01:08]}  Qe6 {[%clk 0:01:35]} 24. g5 {[%clk 0:01:05]}  Qe7 {[%clk 0:01:30]} 25. Qe3 {[%clk 0:01:03]}  Nc4 {[%clk 0:01:27]} 26. Bxc4 {[%clk 0:01:02]}  Rxc4 {[%clk 0:01:28]} 27. Rxd8+ {[%clk 0:00:40]}  Qxd8 {[%clk 0:01:28]} 28. Nd2 {[%clk 0:00:40]}  Rc7 {[%clk 0:01:27]} 29. Nf3 {[%clk 0:00:34]}  Re7 {[%clk 0:01:19]} 30. Qd2 {[%clk 0:00:32]}  Rd7 {[%clk 0:01:15]} 31. Qe2 {[%clk 0:00:29]}  f6 {[%clk 0:01:10]} 32. Qc4+ {[%clk 0:00:24]}  Kg7 {[%clk 0:01:09]} 33. Qe6 {[%clk 0:00:14]}  Rd6 {[%clk 0:01:03]} 34. gxf6+ {[%clk 0:00:13]}  Qxf6 {[%clk 0:01:04]} 35. Qxe5 {[%clk 0:00:13]}  Qxe5 {[%clk 0:01:00]} 36. Nxe5 {[%clk 0:00:14]}  Rd2 {[%clk 0:01:01]} 37. Nc4 {[%clk 0:00:13]}  Rc2 {[%clk 0:00:58]} 38. Rd1 {[%clk 0:00:14]}  Bxe4+ {[%clk 0:00:56]} 39. Kg1 {[%clk 0:00:14]}  b5 {[%clk 0:00:45]} 40. Nd6 {[%clk 0:00:07]}  Bc6 {[%clk 0:00:41]} 41. Rb1 {[%clk 0:00:05]}  Kf6 {[%clk 0:00:37]} 42. a3 {[%clk 0:00:03]}  Ke5 {[%clk 0:00:34]} 43. Nf7+ {[%clk 0:00:03]}  Ke4 {[%clk 0:00:33]} 44. Ng5+ {[%clk 0:00:02]}  Kd3 {[%clk 0:00:29]} 45. Nxh7 {[%clk 0:00:03]}  Rd2 {[%clk 0:00:22]} 46. Ng5 {[%clk 0:00:03]}  Kc2 {[%clk 0:00:20]} 47. Re1 {[%clk 0:00:03]}  Kxb2 {[%clk 0:00:20]} 48. Ne4 {[%clk 0:00:00]}  Rd3 {[%clk 0:00:15]} 0-1

[Event "December 5 Late 2023"]
[Site "https://www.chess.com"]
[Date "2023.12.05"]
[Round "5"]
[White "Erdogan, Anil Berk"]
[Black "Arnold, Ken"]
[Result "1-0"]
[Board "75"]
[TimeControl "180+1"]
[WhiteFideId "6348173"]
[BlackFideId "2056836"]
[WhiteElo "2576"]
[BlackElo "2436"]
[WhiteTeam "TUR"]
[BlackTeam "USA"]
[WhiteClock "0:00:12"]
[BlackClock "0:00:00"]

1. e4 {[%clk 0:03:00]}  c6 {[%clk 0:02:58]} 2. d4 {[%clk 0:03:00]}  d5 {[%clk 0:02:59]} 3. exd5 {[%clk 0:03:01]}  cxd5 {[%clk 0:03:00]} 4. c4 {[%clk 0:03:02]}  Nf6 {[%clk 0:03:00]} 5. Nc3 {[%clk 0:03:03]}  Nc6 {[%clk 0:02:59]} 6. Bg5 {[%clk 0:03:03]}  e6 {[%clk 0:02:58]} 7. c5 {[%clk 0:03:03]}  Be7 {[%clk 0:02:56]} 8. Bb5 {[%clk 0:03:04]}  Bd7 {[%clk 0:02:56]} 9. Nge2 {[%clk 0:03:01]}  h6 {[%clk 0:02:55]} 10. Bh4 {[%clk 0:03:00]}  a6 {[%clk 0:02:49]} 11. Bxc6 {[%clk 0:03:00]}  Bxc6 {[%clk 0:02:49]} 12. b4 {[%clk 0:02:59]}  Ne4 {[%clk 0:02:26]} 13. Bxe7 {[%clk 0:02:59]}  Qxe7 {[%clk 0:02:25]} 14. Nxe4 {[%clk 0:02:56]}  dxe4 {[%clk 0:02:24]} 15. O-O {[%clk 0:02:53]}  O-O {[%clk 0:02:23]} 16. Qb3 {[%clk 0:02:47]}  Rad8 {[%clk 0:02:14]} 17. Rfd1 {[%clk 0:02:38]}  Qg5 {[%clk 0:02:09]} 18. Qe3 {[%clk 0:02:33]}  f5 {[%clk 0:02:01]} 19. Qxg5 {[%clk 0:02:25]}  hxg5 {[%clk 0:02:02]} 20. a4 {[%clk 0:02:25]}  Rd7 {[%clk 0:01:47]} 21. Nc3 {[%clk 0:02:24]}  Rfd8 {[%clk 0:01:46]} 22. b5 {[%clk 0:02:25]}  axb5 {[%clk 0:01:44]} 23. axb5 {[%clk 0:02:25]}  Bd5 {[%clk 0:01:38]} 24. Ra7 {[%clk 0:02:18]}  Bb3 {[%clk 0:01:33]} 25. Rb1 {[%clk 0:02:01]}  Rxd4 {[%clk 0:01:26]} 26. h4 {[%clk 0:02:01]}  Bc2 {[%clk 0:01:24]} 27. Rc1 {[%clk 0:02:00]}  Bd3 {[%clk 0:01:01]} 28. Rxb7 {[%clk 0:01:47]}  Rc4 {[%clk 0:00:56]} 29. Na2 {[%clk 0:01:43]}  Ra8 {[%clk 0:00:48]} 30. c6 {[%clk 0:01:23]}  Rxc1+ {[%clk 0:00:28]} 31. Nxc1 {[%clk 0:01:23]}  Ra1 {[%clk 0:00:28]} 32. c7 {[%clk 0:01:09]}  Rxc1+ {[%clk 0:00:28]} 33. Kh2 {[%clk 0:01:09]}  Kh7 {[%clk 0:00:27]} 34. b6 {[%clk 0:01:04]}  f4 {[%clk 0:00:27]} 35. Ra7 {[%clk 0:00:50]}  e3 {[%clk 0:00:26]} 36. fxe3 {[%clk 0:00:44]}  fxe3 {[%clk 0:00:26]} 37. b7 {[%clk 0:00:33]}  e2 {[%clk 0:00:26]} 38. c8=Q {[%clk 0:00:33]}  e1=Q {[%clk 0:00:26]} 39. Qxc1 {[%clk 0:00:33]}  Qxc1 {[%clk 0:00:18]} 40. b8=Q {[%clk 0:00:33]}  Qf4+ {[%clk 0:00:11]} 41. Qxf4 {[%clk 0:00:33]}  gxf4 {[%clk 0:00:12]} 42. Rf7 {[%clk 0:00:22]}  e5 {[%clk 0:00:11]} 43. Re7 {[%clk 0:00:20]}  e4 {[%clk 0:00:10]} 44. Kh3 {[%clk 0:00:18]}  Kg6 {[%clk 0:00:07]} 45. Kg4 {[%clk 0:00:19]}  Bf1 {[%clk 0:00:07]} 46. Rxe4 {[%clk 0:00:15]}  Bxg2 {[%clk 0:00:07]} 47. Rxf4 {[%clk 0:00:16]}  Kh6 {[%clk 0:00:07]} 48. Rb4 {[%clk 0:00:14]}  g6 {[%clk 0:00:06]} 49. Rb6 {[%clk 0:00:14]}  Bf1 {[%clk 0:00:06]} 50. Rd6 {[%clk 0:00:13]}  Be2+ {[%clk 0:00:05]} 51. Kf4 {[%clk 0:00:14]}  Bc4 {[%clk 0:00:03]} 52. Rc6 {[%clk 0:00:14]}  Bd5 {[%clk 0:00:03]} 53. Rc5 {[%clk 0:00:15]}  Be6 {[%clk 0:00:03]} 54. Re5 {[%clk 0:00:14]}  Bf5 {[%clk 0:00:03]} 55. Re8 {[%clk 0:00:15]}  Kg7 {[%clk 0:00:03]} 56. Kg5 {[%clk 0:00:14]}  Kf7 {[%clk 0:00:03]} 57. Rb8 {[%clk 0:00:14]}  Be4 {[%clk 0:00:03]} 58. Rc8 {[%clk 0:00:12]}  Bb1 {[%clk 0:00:01]} 59. Rc7+ {[%clk 0:00:13]}  Ke6 {[%clk 0:00:00]} 60. Rg7 {[%clk 0:00:12]} 1-0

[Event "December 5 Late 2023"]
[Site "https://www.chess.com"]
[Date "2023.12.05"]
[Round "5"]
[White "Roberson, Peter T"]
[Black "Wu, Sibo"]
[Result "1/2-1/2"]
[Board "79"]
[TimeControl "180+1"]
[WhiteFideId "412384"]
[BlackFideId "8606048"]
[WhiteElo "2561"]
[BlackElo "2418"]
[WhiteTeam "ENG"]
[BlackTeam "CHN"]
[WhiteClock "0:00:34"]
[BlackClock "0:00:10"]

1. d4 {[%clk 0:03:00]}  d6 {[%clk 0:02:59]} 2. Nc3 {[%clk 0:03:00]}  Nf6 {[%clk 0:02:58]} 3. e4 {[%clk 0:03:01]}  g6 {[%clk 0:02:56]} 4. g3 {[%clk 0:03:01]}  Bg7 {[%clk 0:02:55]} 5. Bg2 {[%clk 0:03:02]}  O-O {[%clk 0:02:54]} 6. Nge2 {[%clk 0:03:02]}  c5 {[%clk 0:02:53]} 7. O-O {[%clk 0:03:03]}  Bg4 {[%clk 0:02:45]} 8. f3 {[%clk 0:02:56]}  Bc8 {[%clk 0:02:38]} 9. Be3 {[%clk 0:02:55]}  Nc6 {[%clk 0:02:23]} 10. Qd2 {[%clk 0:02:50]}  Nd7 {[%clk 0:01:39]} 11. d5 {[%clk 0:02:36]}  Nce5 {[%clk 0:01:33]} 12. b3 {[%clk 0:02:35]}  h5 {[%clk 0:01:27]} 13. h3 {[%clk 0:02:34]}  f5 {[%clk 0:01:08]} 14. f4 {[%clk 0:02:21]}  Nf7 {[%clk 0:01:08]} 15. exf5 {[%clk 0:02:16]}  gxf5 {[%clk 0:01:07]} 16. Rae1 {[%clk 0:02:15]}  Nf6 {[%clk 0:01:06]} 17. Bf3 {[%clk 0:02:12]}  a6 {[%clk 0:01:03]} 18. a4 {[%clk 0:02:10]}  Rb8 {[%clk 0:00:57]} 19. Qd3 {[%clk 0:02:05]}  Bd7 {[%clk 0:00:47]} 20. Nb1 {[%clk 0:01:32]}  b5 {[%clk 0:00:47]} 21. axb5 {[%clk 0:01:33]}  axb5 {[%clk 0:00:46]} 22. Nd2 {[%clk 0:01:34]}  Qc7 {[%clk 0:00:45]} 23. Bf2 {[%clk 0:01:30]}  Ra8 {[%clk 0:00:45]} 24. Nc1 {[%clk 0:01:29]}  Rfc8 {[%clk 0:00:42]} 25. Rxe7 {[%clk 0:01:29]}  c4 {[%clk 0:00:36]} 26. bxc4 {[%clk 0:01:23]}  bxc4 {[%clk 0:00:36]} 27. Qe2 {[%clk 0:01:22]}  c3 {[%clk 0:00:22]} 28. Ndb3 {[%clk 0:01:13]}  Re8 {[%clk 0:00:23]} 29. Re3 {[%clk 0:00:55]}  Rxe3 {[%clk 0:00:21]} 30. Qxe3 {[%clk 0:00:56]}  Re8 {[%clk 0:00:21]} 31. Qb6 {[%clk 0:00:54]}  Qxb6 {[%clk 0:00:18]} 32. Bxb6 {[%clk 0:00:55]}  Bb5 {[%clk 0:00:18]} 33. Rd1 {[%clk 0:00:53]}  Nd7 {[%clk 0:00:17]} 34. Bd4 {[%clk 0:00:53]}  Bxd4+ {[%clk 0:00:15]} 35. Nxd4 {[%clk 0:00:54]}  Bc4 {[%clk 0:00:14]} 36. Nxf5 {[%clk 0:00:54]}  Nf6 {[%clk 0:00:11]} 37. Ne2 {[%clk 0:00:51]}  Bxe2 {[%clk 0:00:10]} 38. Bxe2 {[%clk 0:00:30]}  Rxe2 {[%clk 0:00:11]} 39. Ra1 {[%clk 0:00:30]}  Rxc2 {[%clk 0:00:11]} 40. Ra8+ {[%clk 0:00:31]}  Kh7 {[%clk 0:00:11]} 41. Ra7 {[%clk 0:00:32]}  Kg6 {[%clk 0:00:10]} 42. Nh4+ {[%clk 0:00:32]}  Kg7 {[%clk 0:00:09]} 43. Nf5+ {[%clk 0:00:33]}  Kg6 {[%clk 0:00:10]} 44. Nh4+ {[%clk 0:00:34]}  Kg7 {[%clk 0:00:10]} 45. Nf5+ {[%clk 0:00:34]}  Kg6 {[%clk 0:00:10]} 1/2-1/2